bitfinex-derivatives/quotes_ETHF0:USTF0_20260203
["timestamp","ask_amount","ask_price","bid_price","bid_amount"]
[1770103426817,6.71691897,2322.3,2321.7,2.49571415]
[1770103427015,6.71691897,2322.3,2321.7,0.00435]
[1770103427519,2.20373635,2322.2,2321.7,0.00435]
[1770103427917,4.93945717,2322.1,2321.7,0.00435]
[1770103431016,38.64496419,2322.7,2321.9,2.48153947]
[1770103431216,38.64496419,2323.1,2322.4,2.40533305]
[1770103431520,3.015,2323.2,2322.6,2.40533305]
[1770103431917,4.75750703,2323.0,2322.4,2.40533305]
[1770103432222,5.24658813,2323.2,2322.5,2.40533305]
[1770103432417,2.22991701,2323.1,2322.4,5.7197102]
[1770103432621,2.22991701,2322.8,2322.2,0.21551]
[1770103433021,11.358,2323.0,2321.8,0.21555]
[1770103433022,2.22991701,2322.6,2321.8,0.21555]
[1770103433317,40.8748812,2322.4,2321.7,0.00435]
[1770103433523,2.22991701,2322.3,2321.7,0.00435]
[1770103433722,7.18800681,2322.3,2321.4,2.40533305]
[1770103434423,2.25385219,2322.1,2321.3,0.21559]
[1770103434615,13.62385219,2322.0,2321.3,0.21896665]
[1770103434820,18.13133426,2322.0,2321.3,0.21896665]
[1770103435623,2.25385219,2321.9,2321.3,0.21896665]
[1770103436018,7.13157196,2321.8,2321.3,0.21896665]
[1770103436321,11.37,2322.0,2321.3,2.6242997]
[1770103436322,4.87771977,2321.9,2321.3,2.6242997]
[1770103436721,13.60478488,2322.0,2321.3,2.6242997]
[1770103437023,4.93156338,2321.9,2321.3,2.6242997]
[1770103437922,11.417,2321.9,2321.3,2.6242997]
[1770103438123,15.9663465,2321.9,2321.3,2.6242997]
[1770103438726,4.5493465,2321.9,2321.3,2.6242997]
[1770103438926,11.43,2322.1,2321.3,2.6242997]
[1770103439325,4.61195802,2322.0,2321.3,2.6242997]
[1770103440021,11.43,2322.1,2321.3,2.6242997]
[1770103440022,50.07796419,2322.4,2321.7,2.40533305]
[1770103440217,11.433,2322.4,2321.7,2.40533305]
[1770103440422,4.85037091,2322.3,2321.7,2.40533305]
[1770103441226,7.08292739,2322.3,2321.6,0.21557]
[1770103441829,7.08292739,2322.3,2321.6,2.62090305]
[1770103442026,4.85037091,2322.3,2321.6,2.62090305]
[1770103443629,7.16324061,2322.3,2321.6,2.62090305]
[1770103443828,7.16324061,2322.3,2321.6,0.21557]
[1770103445426,2.38250476,2322.2,2321.6,0.21557]
[1770103445628,2.38250476,2322.2,2321.3,0.00337665]
[1770103445826,2.29525047,2322.0,2321.3,0.00337665]
[1770103446021,2.29525047,2321.8,2321.3,0.00337665]
[1770103446226,2.29525047,2321.8,2321.0,2.62095305]
[1770103446424,6.83447426,2321.7,2321.0,2.62095305]
[1770103446825,2.34019886,2321.7,2321.0,2.62095305]
[1770103447127,2.34019886,2321.7,2321.0,2.62546721]
[1770103447328,4.50515372,2321.6,2321.0,2.62546721]
[1770103447825,4.50515372,2321.6,2321.1,2.62094305]
[1770103448029,11.469,2321.9,2321.1,2.62094305]
[1770103448332,2.34019886,2322.0,2321.1,2.62094305]
[1770103448333,16.25924571,2321.8,2321.1,2.62094305]
[1770103448527,4.78924571,2321.8,2321.3,0.2156]
[1770103448732,11.471,2321.8,2321.3,2.62093305]
[1770103449226,4.80778453,2321.7,2321.3,2.62093305]
[1770103449432,4.80778453,2321.7,2321.3,0.2156]
[1770103450935,4.80778453,2321.7,2321.3,2.62093305]
[1770103454837,11.496,2321.9,2321.3,2.62093305]
[1770103455137,4.52575459,2321.8,2321.3,2.62093305]
[1770103456339,2.38250476,2321.7,2321.3,0.2156]
[1770103458636,11.496,2321.9,2321.3,0.2156]
[1770103458837,13.87850476,2321.9,2321.3,0.2156]
[1770103459137,6.99901599,2321.8,2321.3,0.2156]
[1770103460032,2.38250476,2321.7,2321.3,0.2156]
[1770103460238,2.38250476,2321.7,2320.7,3.84310774]
[1770103460239,2.38250476,2321.7,2320.6,2.40533305]
[1770103460439,2.45855207,2321.5,2320.6,2.40533305]
[1770103460634,38.64496419,2321.5,2320.1,3.84310774]
[1770103460832,38.64496419,2321.0,2320.1,0.2157]
[1770103461036,11.522,2320.9,2320.1,0.2157]
[1770103461231,11.522,2320.9,2319.1,6.41067451]
[1770103461232,54.9112723,2320.9,2319.6,2.75741833]
[1770103461432,38.64496419,2320.7,2319.6,2.75741833]
[1770103461837,4.97430549,2320.6,2319.6,2.75741833]
[1770103462136,43.61926968,2320.6,2319.6,2.75741833]
[1770103462333,4.97430549,2320.6,2319.6,2.7628382]
[1770103462733,4.98174196,2320.6,2319.6,2.7628382]
[1770103465139,4.97430549,2320.6,2319.6,2.7628382]
[1770103465531,4.98267937,2320.7,2319.6,2.7628382]
[1770103465741,11.5269543,2320.9,2319.8,2.53849162]
[1770103465939,11.5269543,2320.9,2320.0,2.53849162]
[1770103466139,4.95436235,2320.6,2320.0,2.53849162]
[1770103466440,11.5269543,2320.9,2320.0,2.53849162]
[1770103466940,4.92264347,2320.6,2320.0,2.53849162]
[1770103467143,4.92264347,2320.8,2320.0,2.75421162]
[1770103467332,11.5269543,2320.9,2320.0,2.75421162]
[1770103467538,4.92264347,2320.6,2320.0,2.75421162]
[1770103467835,11.5269543,2320.9,2320.0,2.75421162]
[1770103468242,4.67177606,2320.8,2320.0,2.75421162]
[1770103468540,4.67177606,2320.8,2320.2,2.54166833]
[1770103468741,0.0049543,2320.9,2320.2,2.75736833]
[1770103469936,0.0049543,2320.9,2320.4,2.54166833]
[1770103470139,3.016,2321.2,2320.4,2.75734833]
[1770103470534,4.91436461,2321.1,2320.4,2.75734833]
[1770103470735,4.91436461,2321.1,2320.6,2.54166833]
[1770103470940,3.016,2321.2,2320.6,2.54166833]
[1770103471142,3.02078459,2321.2,2320.6,2.54166833]
[1770103471647,0.00478459,2321.2,2320.8,2.54166833]
[1770103471943,7.16724219,2321.1,2320.2,0.2157]
[1770103472447,2.45855207,2321.1,2320.2,0.2157]
[1770103472746,7.16724219,2321.0,2320.2,0.2157]
[1770103473544,4.70869012,2321.0,2319.6,6.39924204]
[1770103473937,4.70869012,2321.0,2320.3,2.53543247]
[1770103474139,7.16724219,2321.0,2320.3,2.53543247]
[1770103477450,7.16724219,2321.0,2320.3,2.75112247]
[1770103477751,0.00460261,2321.1,2320.5,2.53543247]
[1770103478551,0.00460261,2321.1,2320.7,2.75108247]
[1770103479946,2.46315468,2321.1,2320.4,2.53543247]
[1770103483149,2.45855207,2320.9,2320.7,0.21565]
[1770103483354,2.45855207,2320.9,2320.2,2.53543247]
[1770103483848,0.00460261,2321.1,2320.7,0.21565]
[1770103484049,2.45855207,2321.0,2320.7,0.21565]
[1770103484352,7.31561972,2321.0,2320.7,0.21565]
[1770103484552,2.45855207,2320.9,2320.2,0.2157]
[1770103484745,5.0236561,2320.9,2320.2,0.2157]
[1770103484949,2.45855207,2320.7,2319.6,2.75660234]
[1770103485151,2.45855207,2320.7,2319.7,2.53543247]
[1770103485350,4.52755419,2320.6,2319.7,2.53543247]
[1770103486054,6.98610626,2320.6,2319.7,2.53543247]
[1770103486256,6.98610626,2320.6,2319.8,2.75116247]
[1770103486555,2.45855207,2320.6,2319.8,2.75116247]
[1770103486755,4.8987052,2320.5,2319.8,2.75116247]
[1770103488458,4.8987052,2320.5,2320.2,2.53543247]
[1770103488650,2.56510403,2320.9,2320.2,2.75113247]
[1770103488854,5.0236561,2321.0,2320.2,2.75113247]
[1770103489158,4.66380612,2320.8,2320.2,2.75113247]
[1770103489459,2.56510403,2320.9,2320.2,2.75113247]
[1770103489857,4.92181375,2320.8,2320.2,2.75113247]
[1770103491459,4.92181375,2320.8,2320.4,2.34934028]
[1770103491859,4.92181375,2320.8,2320.3,0.21569]
[1770103493553,4.92181375,2320.8,2320.3,2.56503028]
[1770103494855,4.92181375,2320.8,2320.4,2.56502028]
[1770103495061,2.56510403,2321.0,2320.6,2.34934028]
[1770103495263,2.56510403,2321.0,2320.5,2.56501028]
[1770103495462,4.96319573,2321.0,2320.5,0.21567]
[1770103496764,2.3980917,2320.9,2320.5,0.21567]
[1770103497062,4.96319573,2321.0,2320.5,0.21567]
[1770103497762,2.56510403,2321.0,2320.5,2.56501028]
[1770103499564,4.96319573,2321.0,2320.5,0.21567]
[1770103499764,2.3980917,2320.9,2320.5,0.21567]
[1770103501066,2.36549438,2320.7,2320.0,2.56505028]
[1770103501468,2.36549438,2320.7,2320.1,0.21571]
[1770103501862,2.36549438,2320.7,2320.1,2.56505028]
[1770103502162,2.56510403,2320.8,2320.1,2.56505028]
[1770103502358,2.56510403,2320.8,2320.2,2.56504028]
[1770103502565,2.56510403,2321.0,2320.6,2.34934028]
[1770103502768,2.56970664,2321.1,2320.6,2.34934028]
[1770103502966,2.56510403,2321.3,2320.9,2.34934028]
[1770103503264,2.56510403,2321.3,2320.8,0.21564]
[1770103503265,4.96319573,2321.4,2320.8,0.21564]
[1770103503465,2.3980917,2321.3,2320.8,0.21564]
[1770103503660,2.3980917,2321.1,2320.2,2.56503028]
[1770103503863,2.3980917,2321.1,2320.3,0.21569]
[1770103504064,7.21061846,2321.0,2320.3,0.21569]
[1770103504466,2.3980917,2320.9,2320.3,0.21569]
[1770103505166,2.3980917,2320.7,2319.7,6.21516245]
[1770103505469,2.3980917,2320.4,2319.7,0.21574]
[1770103505669,2.3980917,2320.4,2319.7,2.56508028]
[1770103505869,4.65849663,2320.3,2319.7,2.56508028]
[1770103508968,2.56510403,2320.5,2319.9,2.34934028]
[1770103509173,4.96319573,2320.7,2320.0,2.34934028]
[1770103510168,2.56510403,2320.9,2320.2,2.34934028]
[1770103510568,4.96319573,2320.9,2320.2,2.34934028]
[1770103511268,4.96319573,2320.9,2320.3,0.21568]
[1770103516476,2.3980917,2320.8,2320.3,0.21568]
[1770103516675,2.3980917,2320.8,2319.7,6.21516245]
[1770103516676,2.3980917,2320.7,2319.7,6.21516245]
[1770103516876,2.3980917,2320.5,2319.9,0.21572]
[1770103517276,7.34245799,2320.4,2319.9,0.21572]
[1770103517476,7.34245799,2320.4,2319.8,5.48274818]
[1770103517676,4.94436629,2320.5,2320.1,2.56504028]
[1770103517879,2.56510403,2320.6,2320.1,2.56504028]
[1770103518275,2.3980917,2320.5,2320.1,0.2157]
[1770103519080,2.02004403,2320.6,2319.6,3.87124204]
[1770103519276,12.01719139,2321.5,2320.5,2.67654559]
[1770103519277,19.52523221,2321.5,2320.5,2.67654559]
[1770103519577,24.00001097,2321.5,2321.1,4.08143217]
[1770103519772,24.00001097,2321.5,2321.2,4.36469598]
[1770103519978,32.40098421,2321.5,2321.3,4.36469598]
[1770103520169,32.40098421,2321.5,2321.2,4.36469598]
[1770103520475,32.40403188,2321.5,2321.2,4.36840082]
[1770103520681,32.40403188,2321.5,2321.2,6.93958981]
[1770103520682,8.62,2321.4,2321.2,6.93958981]
[1770103521282,8.62,2321.4,2321.2,0.00370484]
[1770103521483,2.46104787,2321.3,2321.1,7.1536601]
[1770103521684,9.752,2321.9,2321.3,0.2156]
[1770103521983,23.78098421,2321.8,2321.3,0.2156]
[1770103522282,32.40098421,2321.8,2321.3,0.2156]
[1770103522481,8.62,2321.7,2321.3,0.2156]
[1770103522882,8.62458289,2321.7,2321.3,0.21987879]
[1770103523583,2.46104787,2321.6,2321.3,0.21987879]
[1770103523985,2.46104787,2321.4,2321.3,0.21987879]
[1770103524186,2.46104787,2321.4,2321.3,0.21559]
[1770103524484,0.00458289,2321.7,2321.3,0.21559]
[1770103524678,23.78098421,2321.6,2321.3,0.21559]
[1770103525085,26.24203208,2321.6,2321.3,0.21922644]
[1770103526082,23.78098421,2321.6,2321.3,0.21922644]
[1770103527481,26.24203208,2321.6,2321.3,0.21922644]
[1770103527680,34.42788208,2321.6,2321.3,0.21922644]
[1770103529488,31.96683421,2321.6,2321.3,0.21922644]
[1770103529988,2.89e-06,2321.7,2321.5,0.21557]
[1770103531191,2.89e-06,2321.7,2321.5,2.78675899]
[1770103531395,2.46104787,2322.3,2321.7,0.21555]
[1770103531593,2.46104787,2322.0,2321.7,0.21555]
[1770103531886,2.46104787,2322.0,2321.3,0.00363644]
[1770103532189,8.18585,2321.5,2321.1,0.21561]
[1770103532385,1.75725032,2321.5,2320.6,5.09904094]
[1770103532591,8.18585,2321.3,2320.7,0.21565]
[1770103532788,6.42852604,2321.4,2320.7,0.21565]
[1770103532984,8.18585,2321.2,2320.7,0.21565]
[1770103533185,8.19083894,2321.2,2320.7,0.21982714]
[1770103533491,8.18585,2321.1,2320.7,0.21982714]
[1770103533891,8.18585,2321.1,2320.8,2.63708517]
[1770103534092,7.9616776,2321.1,2320.8,2.63708517]
[1770103534395,7.5288276,2321.1,2320.9,0.21563]
[1770103534690,0.00498894,2321.2,2320.9,2.63707517]
[1770103534883,23.33236315,2321.2,2320.9,2.63707517]
[1770103535390,0.00498894,2321.2,2321.0,2.63706517]
[1770103535890,0.00498894,2321.2,2321.0,0.21562]
[1770103536290,7.07170654,2321.2,2321.0,0.21562]
[1770103536993,7.0667176,2321.1,2320.8,4.48200635]
[1770103537193,7.0667176,2321.1,2320.7,0.00417714]
[1770103537490,7.0667176,2321.1,2321.0,0.21562]
[1770103537695,7.0667176,2321.1,2320.7,2.42562231]
[1770103537994,23.32737421,2321.1,2320.6,0.93311106]
[1770103538295,8.94e-06,2321.2,2320.6,5.09904094]
[1770103538690,8.94e-06,2321.2,2321.0,0.21562]
[1770103539092,8.94e-06,2321.2,2321.0,0.22072111]
[1770103540197,23.32738315,2321.2,2321.0,0.22072111]
[1770103540397,25.78843102,2321.2,2320.7,7.52048611]
[1770103540597,2.46104787,2321.1,2320.6,5.09904094]
[1770103540797,2.46104787,2321.0,2320.5,3.82266]
[1770103540994,2.46104787,2320.9,2320.5,0.21566]
[1770103541198,2.46104787,2320.9,2320.3,7.52048611]
[1770103541392,23.32737421,2320.8,2320.5,0.21567]
[1770103541695,30.78967028,2321.1,2320.5,0.21567]
[1770103542099,23.32737421,2321.1,2320.8,0.21564]
[1770103542894,23.32737421,2321.1,2320.9,2.63707517]
[1770103543396,23.32737421,2321.1,2320.9,0.21563]
[1770103545494,22.88385421,2321.1,2321.0,0.21562]
[1770103545699,8.94e-06,2321.2,2321.0,0.21562]
[1770103545898,21.72694189,2321.2,2321.0,0.21562]
[1770103548001,24.18798976,2321.2,2320.7,5.09904094]
[1770103548202,24.18798976,2321.2,2321.0,0.21562]
[1770103548798,21.72694189,2321.2,2321.0,0.21562]
[1770103549499,2.46104787,2321.6,2320.9,2.42144517]
[1770103549708,2.46104787,2321.6,2321.2,0.2156]
[1770103550405,2.46561278,2321.6,2321.2,0.2156]
[1770103550900,21.05926189,2321.5,2321.2,2.43646153]
[1770103551106,2.32321281,2322.1,2321.6,0.21556]
[1770103551307,2.32321281,2322.1,2321.7,0.21556]
[1770103551505,2.70637816,2322.0,2321.7,0.21556]
[1770103551904,2.70637816,2322.0,2321.8,0.21554]
[1770103552103,2.71067381,2322.0,2321.8,0.21554]
[1770103552600,0.00429565,2322.0,2321.9,0.21554]
[1770103552803,2.53706953,2322.5,2321.9,0.21554]
[1770103553206,6.65932824,2322.4,2321.9,0.21554]
[1770103553408,1.81250381,2322.4,2321.9,2.50948455]
[1770103553604,1.81250381,2322.4,2322.0,2.29394455]
[1770103553910,1.81601777,2322.4,2322.2,0.21551]
[1770103554109,2.53706953,2322.3,2322.0,0.00378602]
[1770103555008,4.3530873,2322.4,2322.0,0.00378602]
[1770103555208,4.3530873,2322.4,2322.2,0.21551]
[1770103555700,4.3530873,2322.4,2322.0,0.00378602]
[1770103556098,2.53706953,2322.3,2322.0,0.00378602]
[1770103557011,0.39094621,2322.1,2321.8,1.42025055]
[1770103557312,6.58240521,2322.2,2321.7,0.21555]
[1770103557609,0.72753381,2322.0,2321.8,2.54292082]
[1770103557810,0.00351396,2322.4,2322.2,0.21551]
[1770103558011,0.00351396,2322.4,2322.2,0.21991987]
[1770103558310,0.00351396,2322.4,2322.3,0.2155]
[1770103558511,0.00351396,2322.4,2322.3,2.50944455]
[1770103559612,0.68854218,2323.2,2322.4,0.21549]
[1770103559911,0.68854218,2323.0,2322.2,0.00440987]
[1770103560313,0.84288457,2322.9,2322.2,2.31911425]
[1770103560809,0.84794958,2322.9,2322.2,2.31911425]
[1770103561412,1.30438245,2322.9,2322.4,0.21549]
[1770103561613,1.30438245,2322.9,2322.2,0.00440987]
[1770103561614,0.45643287,2322.8,2322.2,0.00440987]
[1770103561914,4.55000906,2322.7,2322.2,0.00440987]
[1770103562213,4.79095193,2322.7,2322.2,0.00440987]
[1770103562414,4.55000906,2322.7,2322.2,0.00440987]
[1770103563212,4.55000906,2322.7,2322.4,0.21549]
[1770103566113,4.55000906,2322.7,2322.2,0.00440987]
[1770103566314,0.16894969,2322.6,2322.0,0.21553]
[1770103566616,4.70748805,2322.5,2322.1,2.4606509]
[1770103567017,4.70748805,2322.8,2322.1,2.4606509]
[1770103567218,0.00506501,2322.9,2322.1,2.46436324]
[1770103567618,4.86913954,2322.8,2322.1,2.46436324]
[1770103567918,4.86913954,2322.8,2322.3,2.4606509]
[1770103568118,4.86913954,2322.8,2322.4,0.21549]
[1770103569522,4.86913954,2322.8,2322.5,0.21548]
[1770103569724,0.00506501,2322.9,2322.5,0.21548]
[1770103572023,4.97348804,2322.8,2322.1,0.00371234]
[1770103572323,4.97348804,2322.8,2322.5,0.21548]
[1770103572624,4.84139569,2322.8,2322.5,0.21548]
[1770103574821,0.00565796,2322.7,2321.7,3.8424511]
[1770103575016,4.84139569,2322.8,2322.3,0.2155]
[1770103575217,4.84139569,2322.8,2322.4,2.54292081]
[1770103575622,4.84139569,2322.8,2322.5,0.20982204]
[1770103575823,0.00506501,2322.9,2322.5,2.75804387]
[1770103576018,3.015,2324.1,2322.8,2.76208315]
[1770103576226,2.526,2324.0,2322.9,0.20475703]
[1770103576427,4.48237697,2323.3,2322.9,0.20475703]
[1770103576828,43.326,2324.0,2322.9,0.20475703]
[1770103577126,4.50137567,2323.3,2322.9,0.20475703]
[1770103577427,43.33119247,2324.0,2322.9,0.20475703]
[1770103577726,4.50137567,2323.5,2322.9,0.20475703]
[1770103578121,4.50137567,2323.9,2322.9,0.20475703]
[1770103578122,0.10488529,2323.9,2322.9,2.6952352]
[1770103578327,0.00519247,2324.0,2323.3,2.70588817]
[1770103578528,4.52646476,2323.9,2323.3,2.70588817]
[1770103579027,4.52646476,2323.9,2323.3,2.70960051]
[1770103579422,0.10488529,2323.8,2323.4,0.09987174]
[1770103579819,4.82179631,2323.7,2323.4,0.09987174]
[1770103580422,4.61971546,2323.9,2323.4,0.09987174]
[1770103580618,0.00519247,2324.0,2323.5,2.75747493]
[1770103580823,0.00519247,2324.0,2323.7,2.54208493]
[1770103581024,3.678,2325.0,2323.8,0.00371234]
[1770103581224,3.678,2325.0,2323.8,0.09987174]
[1770103581424,4.72011788,2324.9,2323.8,0.09987174]
[1770103581829,4.72011788,2324.9,2323.8,2.64195667]
[1770103582024,4.72548872,2324.9,2323.8,2.64195667]
[1770103582630,4.72548872,2324.9,2323.8,2.54208493]
[1770103583330,4.72548872,2324.9,2323.7,0.21537]
[1770103583331,4.72548872,2324.9,2323.9,0.09987174]
[1770103584023,4.72548872,2324.9,2323.3,2.54208493]
[1770103584229,0.21527,2324.8,2323.3,0.09987174]
[1770103584635,5.06303818,2324.7,2323.3,0.09987174]
[1770103585034,0.21528,2324.7,2323.3,0.09987174]
[1770103585234,4.60892802,2324.6,2323.3,0.09987174]
[1770103585430,4.82421802,2324.6,2323.3,0.09987174]
[1770103585831,0.21529,2324.6,2323.3,0.09987174]
[1770103586034,5.02173306,2324.5,2322.8,2.54208493]
[1770103586237,5.02173306,2324.5,2322.9,0.09987174]
[1770103586238,0.21531,2324.4,2322.9,0.09987174]
[1770103586533,5.02175306,2324.3,2322.9,0.09987174]
[1770103586739,46.34,2324.2,2322.9,0.09987174]
[1770103587238,4.48076823,2324.1,2322.9,0.09987174]
[1770103588138,3.014,2325.0,2324.0,2.54579727]
[1770103588439,3.014,2325.0,2323.8,2.75744493]
[1770103588440,4.92136593,2324.6,2323.8,2.75744493]
[1770103588835,5.78837084,2324.9,2323.9,0.09987174]
[1770103589040,4.92136593,2324.5,2323.9,0.09987174]
[1770103589241,4.50041838,2324.6,2323.9,0.09987174]
[1770103589440,4.552,2324.4,2323.9,2.64195667]
[1770103589740,0.95374372,2324.3,2323.9,2.64195667]
[1770103590036,0.95374372,2324.3,2324.1,0.00371234]
[1770103590241,0.95374372,2324.3,2323.9,0.09987174]
[1770103590442,4.15974372,2324.3,2323.9,0.09987174]
[1770103590643,4.88625688,2324.4,2323.9,0.09987174]
[1770103590837,4.88625688,2324.2,2323.9,2.64195667]
[1770103591240,10.45756351,2324.3,2323.9,2.64195667]
[1770103591438,10.45756351,2324.3,2323.9,0.09987174]
[1770103591439,5.638,2324.3,2323.9,0.09987174]
[1770103591734,4.81956351,2324.2,2323.9,0.09987174]
[1770103591941,4.81956351,2324.2,2323.3,2.54208493]
[1770103592442,4.81956351,2324.2,2323.2,0.21542]
[1770103592642,4.81956351,2324.2,2323.2,2.75750493]
[1770103593741,4.81956351,2324.2,2322.9,2.55359021]
[1770103594044,4.81956351,2324.2,2322.8,4.14696657]
[1770103594045,4.81956351,2324.2,2322.7,0.21546]
[1770103594241,40.8,2324.1,2322.7,0.21546]
[1770103594739,4.77780024,2324.0,2322.7,0.21546]
[1770103597142,4.77780024,2324.0,2322.5,0.00530102]
[1770103597143,4.99315024,2324.0,2322.5,0.00530102]
[1770103597646,0.21539,2323.6,2322.0,2.54208493]
[1770103597843,32.866,2323.5,2322.0,2.54208493]
[1770103598142,37.79501248,2323.5,2322.0,2.54208493]
[1770103598344,38.01041248,2323.5,2322.0,2.54208493]
[1770103598644,38.01041248,2323.5,2322.0,2.54518889]
[1770103599242,38.01041248,2323.5,2322.0,0.00310396]
[1770103599445,0.2154,2323.4,2322.0,0.00310396]
[1770103599643,3.014,2323.3,2322.0,0.00310396]
[1770103599944,40.8,2323.2,2322.0,0.00310396]
[1770103600141,40.80408781,2323.2,2322.0,0.00310396]
[1770103600441,4.8021656,2323.1,2322.0,0.00310396]
[1770103602448,4.8021656,2323.1,2322.0,2.54518889]
[1770103602843,5.54,2323.0,2322.0,2.76071889]
[1770103603243,4.61423682,2322.9,2322.0,2.76071889]
[1770103603742,6.441,2322.8,2322.0,2.76071889]
[1770103604138,4.52433602,2322.7,2322.0,2.76071889]
[1770103606547,4.52433602,2322.7,2322.0,0.00310396]
[1770103607746,4.52433602,2322.7,2321.7,2.54208493]
[1770103607941,4.52433602,2322.7,2321.4,2.75766493]
[1770103608743,4.52433602,2322.7,2321.4,2.7632305]
[1770103610746,13.374,2322.6,2321.4,2.7632305]
[1770103611142,4.65457092,2322.5,2321.4,2.7632305]
[1770103612650,0.00408781,2323.2,2322.3,2.54100112]
[1770103612849,6.77013406,2324.3,2322.8,2.54100112]
[1770103613049,6.77013406,2324.3,2322.8,2.75645112]
[1770103613249,4.64030932,2323.6,2322.8,2.75645112]
[1770103613549,4.64030932,2324.1,2323.0,2.54100112]
[1770103613949,4.64030932,2323.5,2323.0,2.54100112]
[1770103614150,8.905,2324.0,2323.0,2.54100112]
[1770103614353,0.36484978,2323.9,2323.0,2.54100112]
[1770103614553,8.905,2324.0,2323.0,2.54100112]
[1770103614748,0.0051893,2324.1,2323.0,2.54100112]
[1770103615053,10.35792062,2324.0,2323.2,2.54100112]
[1770103615254,10.35792062,2324.0,2323.2,2.54522377]
[1770103616150,8.673,2323.9,2323.2,2.54522377]
[1770103616550,4.98246585,2323.8,2323.2,2.54522377]
[1770103617453,5.541,2323.7,2323.2,2.54522377]
[1770103617655,4.81693479,2324.0,2323.4,2.54100112]
[1770103617856,3.015,2323.9,2323.6,2.54100112]
[1770103618050,2.526,2324.0,2323.6,2.54100112]
[1770103618256,3.015,2324.7,2323.8,2.32435768]
[1770103618449,2.45054177,2325.0,2324.0,2.32435768]
[1770103618649,5.541,2324.9,2324.2,2.32435768]
[1770103618856,10.07394648,2324.9,2324.2,2.32435768]
[1770103619455,4.5373809,2324.9,2324.2,2.32435768]
[1770103619656,7.613,2324.8,2324.2,2.32435768]
[1770103620550,3.81,2324.7,2324.2,2.32435768]
[1770103620755,3.81,2324.7,2324.0,0.21534]
[1770103621058,7.09493741,2324.6,2324.0,0.39703449]
[1770103621258,7.09493741,2324.6,2323.7,2.72139217]
[1770103621459,7.09493741,2324.6,2323.8,2.72139217]
[1770103621661,7.09493741,2324.6,2323.9,0.39703449]
[1770103624261,7.09493741,2324.6,2323.8,2.32435768]
[1770103624858,4.64439564,2324.6,2323.8,2.32435768]
[1770103625163,3.13043442,2324.9,2324.1,2.53968768]
[1770103625563,3.13043442,2324.9,2324.0,2.66730323]
[1770103625564,3.014,2325.3,2324.5,2.32435768]
[1770103625863,5.539,2325.3,2324.5,2.32435768]
[1770103626064,4.81833016,2325.6,2324.8,1.34107344]
[1770103626263,2.45054177,2325.8,2324.9,1.34155296]
[1770103626560,4.91455405,2325.7,2324.9,6.92075709]
[1770103626761,4.91455405,2325.7,2325.0,0.21525]
[1770103627163,0.00403097,2325.8,2325.2,1.34152296]
[1770103627566,2.45457274,2325.8,2325.2,0.21523]
[1770103627863,2.45054177,2325.6,2324.5,0.21529]
[1770103628265,2.45054177,2325.4,2324.3,1.12896426]
[1770103628465,4.51790055,2325.5,2324.8,0.21527]
[1770103628659,4.51790055,2325.6,2324.9,0.21526]
[1770103628864,0.00403097,2325.8,2325.0,1.34421426]
[1770103629060,5.07357274,2325.8,2325.0,1.34421426]
[1770103629966,5.89757274,2325.8,2325.0,1.34421426]
[1770103631067,2.45054177,2325.6,2324.8,0.00322938]
[1770103631458,2.45054177,2325.4,2324.8,0.00322938]
[1770103631864,2.45054177,2325.2,2324.8,0.00322938]
[1770103635168,2.45054177,2325.2,2324.6,0.21529]
[1770103635363,2.45054177,2325.0,2324.0,1.02733176]
[1770103635767,2.45054177,2325.0,2324.6,0.21529]
[1770103636069,2.45054177,2324.8,2323.9,0.21535]
[1770103636271,2.45054177,2324.6,2323.9,0.21928028]
[1770103637867,2.45054177,2324.6,2323.1,2.5519623]
[1770103638071,2.45054177,2324.4,2323.4,0.2154]
[1770103638373,4.89852138,2324.5,2322.8,0.21545]
[1770103638374,2.45054177,2324.2,2322.8,0.21545]
[1770103638665,4.93507667,2324.1,2322.8,0.21545]
[1770103638867,2.45054177,2324.0,2322.8,0.21866208]
[1770103639073,2.45054177,2323.8,2322.8,0.21866208]
[1770103639268,3.012,2323.9,2322.8,0.21866208]
[1770103639269,2.45054177,2323.6,2322.8,0.61316995]
[1770103639771,2.45054177,2323.6,2322.8,0.21866208]
[1770103639973,2.45054177,2323.4,2322.8,0.21866208]
[1770103640365,2.33085424,2323.2,2322.8,0.21866208]
[1770103640565,2.33085424,2323.2,2322.4,0.3946246]
[1770103640773,2.33085424,2323.2,2322.5,0.3946246]
[1770103640973,2.33085424,2323.2,2322.4,5.87808355]
[1770103641274,2.33085424,2323.2,2322.8,0.21545]
[1770103641573,2.33085424,2323.2,2322.8,0.22103116]
[1770103642575,2.33085424,2323.2,2322.8,0.61565576]
[1770103642775,2.33085424,2323.2,2322.8,0.22103116]
[1770103644366,2.33085424,2323.6,2323.0,0.21544]
[1770103644776,7.17568869,2323.6,2323.0,0.21544]
[1770103645575,2.33085424,2323.5,2323.0,0.21544]
[1770103645776,2.33085424,2323.5,2322.8,0.00558116]
[1770103645976,2.33085424,2323.3,2322.8,0.00558116]
[1770103649482,2.33085424,2323.1,2322.6,0.21547]
[1770103650481,2.33085424,2323.1,2322.6,0.22063985]
[1770103651882,2.33085424,2323.4,2322.9,0.21544]
[1770103652879,2.33085424,2322.9,2321.8,0.21555]
[1770103653075,2.33085424,2322.7,2321.8,0.21555]
[1770103653274,2.33085424,2322.5,2321.8,0.21555]
[1770103653475,2.33085424,2322.5,2321.1,3.84437608]
[1770103653674,2.33085424,2322.3,2321.1,1.29720903]
[1770103653884,2.33467987,2322.3,2321.5,0.21558]
[1770103654083,2.33085424,2322.1,2321.5,0.21558]
[1770103655776,2.33085424,2322.1,2321.6,0.21556]
[1770103656582,2.33085424,2321.9,2321.1,0.00479525]
[1770103656987,2.33085424,2321.9,2321.2,5.62141206]
[1770103657180,2.33085424,2321.9,2321.6,0.21556]
[1770103658584,2.33085424,2321.7,2321.1,0.00479525]
[1770103658989,0.00382563,2322.3,2320.5,5.7617886]
[1770103658990,2.33085424,2321.5,2320.5,5.7617886]
[1770103659190,2.33085424,2321.5,2321.0,0.21562]
[1770103659991,2.33085424,2321.5,2321.0,0.2201045]
[1770103661287,2.33085424,2321.3,2320.6,5.71624035]
[1770103661489,2.33085424,2321.3,2320.3,9.21879218]
[1770103661790,2.33085424,2321.3,2320.6,0.21566]
[1770103662093,2.33085424,2321.1,2320.6,0.21566]
[1770103662389,2.33085424,2321.1,2320.6,0.21927416]
[1770103663589,2.33085424,2321.1,2320.7,0.21565]
[1770103663790,2.33085424,2321.7,2321.2,0.2156]
[1770103664191,2.33085424,2321.6,2321.2,0.2156]
[1770103664692,0.33036706,2321.5,2321.4,0.21559]
[1770103664994,2.54109148,2321.9,2321.4,0.21559]
[1770103668388,2.54109148,2321.9,2321.5,0.21557]
[1770103668593,2.54109148,2321.9,2321.6,0.21556]